[Event "*** Titled Tuesday Blitz"]
[Site "Chess.com"]
[Date "2019.10.01"]
[Round "7"]
[White "CzechmVIII"]
[Black "JussupowFan"]
[Result "0-1"]
[WhiteElo "2093"]
[BlackElo "2197"]
[TimeControl "180+2"]
[EndTime "14:38:05 PDT"]
[Termination "JussupowFan won by resignation"]

1. e4 {[%clk 0:03:01.9]} 1... c5 {[%clk 0:03:00.6]} 2. Nf3 {[%clk 0:03:02.7]}
2... d6 {[%clk 0:03:01.6]} 3. d4 {[%clk 0:03:02.1]} 3... cxd4 {[%clk 0:03:03.5]}
4. Nxd4 {[%clk 0:03:02.9]} 4... Nf6 {[%clk 0:03:04.9]} 5. Nc3 {[%clk 0:03:04.1]}
5... g6 {[%clk 0:03:05.3]} 6. Be3 {[%clk 0:03:00.1]} 6... Bg7 {[%clk 0:02:41]}
7. f3 {[%clk 0:03:00.8]} 7... a6 {[%clk 0:02:39.4]} 8. Qd2 {[%clk 0:02:58.6]}
8... Nbd7 {[%clk 0:02:40.8]} 9. g4 {[%clk 0:02:43.8]} 9... b5 {[%clk 0:02:41.7]}
10. h4 {[%clk 0:02:43.9]} 10... b4 {[%clk 0:02:39.6]} 11. Nce2 {[%clk
0:02:27.7]} 11... Ne5 {[%clk 0:02:40.3]} 12. Qxb4 {[%clk 0:01:20.3]} 12... O-O
{[%clk 0:02:36.1]} 13. O-O-O {[%clk 0:01:13.5]} 13... Qc7 {[%clk 0:02:04.7]} 14.
Nc3 {[%clk 0:00:47.6]} 14... Bd7 {[%clk 0:02:02.8]} 15. g5 {[%clk 0:00:43.6]}
15... Nh5 {[%clk 0:02:03.4]} 16. Nd5 {[%clk 0:00:44.4]} 16... Qd8 {[%clk
0:02:03.3]} 17. f4 {[%clk 0:00:34.2]} 17... Ng4 {[%clk 0:02:03.4]} 18. Bg1
{[%clk 0:00:34.2]} 18... Ng3 {[%clk 0:01:57.8]} 19. Bg2 {[%clk 0:00:27]} 19...
Nxh1 {[%clk 0:01:57.5]} 20. Bxh1 {[%clk 0:00:28.3]} 20... Rb8 {[%clk 0:01:53.3]}
21. Qe1 {[%clk 0:00:29]} 21... e6 {[%clk 0:01:42.6]} 22. Nc3 {[%clk 0:00:25.5]}
22... e5 {[%clk 0:01:42.2]} 23. Nb3 {[%clk 0:00:17.9]} 23... exf4 {[%clk
0:01:40.6]} 24. Rxd6 {[%clk 0:00:18]} 24... Qe7 {[%clk 0:01:35.5]} 25. Bc5
{[%clk 0:00:17.9]} 25... Rfc8 {[%clk 0:01:25.8]} 26. Rd5 {[%clk 0:00:18.6]}
26... Qe8 {[%clk 0:01:13.2]} 27. Bd6 {[%clk 0:00:19.7]} 27... Ne3 {[%clk
0:01:08]} 28. Bxb8 {[%clk 0:00:17.4]} 28... Nxd5 {[%clk 0:01:03.8]} 29. Nxd5
{[%clk 0:00:18.5]} 29... Rxb8 {[%clk 0:01:04.9]} 30. Nf6+ {[%clk 0:00:18.6]}
30... Bxf6 {[%clk 0:01:06.1]} 31. gxf6 {[%clk 0:00:20.5]} 31... Qe5 {[%clk
0:01:06.4]} 32. Qd2 {[%clk 0:00:18.7]} 32... Be6 {[%clk 0:01:03.7]} 33. Bf3
{[%clk 0:00:17.2]} 33... Qxf6 {[%clk 0:01:01.1]} 34. Be2 {[%clk 0:00:18.5]}
34... f3 {[%clk 0:01:01.4]} 35. Bxa6 {[%clk 0:00:19.2]} 35... f2 {[%clk
0:01:01.3]} 36. Bf1 {[%clk 0:00:19.9]} 36... Rd8 {[%clk 0:00:59.6]} 37. Qe3
{[%clk 0:00:19]} 37... Qxh4 {[%clk 0:00:56.7]} 38. Nd4 {[%clk 0:00:17.7]} 38...
g5 {[%clk 0:00:55.4]} 39. Nxe6 {[%clk 0:00:18.4]} 39... fxe6 {[%clk 0:00:57.3]}
40. Bc4 {[%clk 0:00:18.2]} 40... Qh1+ {[%clk 0:00:55.5]} 0-1

[Event "*** Titled Tuesday Blitz"]
[Site "Chess.com"]
[Date "2019.10.01"]
[Round "7"]
[White "Korchmar_Vasiliy"]
[Black "FMJoseHerrera"]
[Result "1-0"]
[WhiteElo "2686"]
[BlackElo "2534"]
[TimeControl "180+2"]
[EndTime "14:38:12 PDT"]
[Termination "Korchmar_Vasiliy won on time"]

1. d4 {[%clk 0:03:01.6]} 1... Nf6 {[%clk 0:03:00.3]} 2. Nf3 {[%clk 0:03:02.8]}
2... c5 {[%clk 0:03:01.3]} 3. d5 {[%clk 0:03:03.8]} 3... g6 {[%clk 0:03:02.7]}
4. c4 {[%clk 0:02:56.5]} 4... b5 {[%clk 0:02:22]} 5. cxb5 {[%clk 0:02:56.6]}
5... a6 {[%clk 0:02:22.7]} 6. b6 {[%clk 0:02:57.6]} 6... Bg7 {[%clk 0:02:17.5]}
7. g3 {[%clk 0:02:57.6]} 7... O-O {[%clk 0:02:17.6]} 8. Bg2 {[%clk 0:02:59]}
8... d6 {[%clk 0:02:18.4]} 9. O-O {[%clk 0:02:59.7]} 9... Nbd7 {[%clk
0:01:39.8]} 10. Nc3 {[%clk 0:03:00.9]} 10... Nxb6 {[%clk 0:01:39.1]} 11. e4
{[%clk 0:02:57]} 11... a5 {[%clk 0:01:33.8]} 12. Re1 {[%clk 0:02:58.1]} 12... a4
{[%clk 0:01:32.2]} 13. a3 {[%clk 0:02:57.2]} 13... Ba6 {[%clk 0:01:30.5]} 14. e5
{[%clk 0:02:54.9]} 14... Ng4 {[%clk 0:01:22.5]} 15. Bf4 {[%clk 0:02:54.7]} 15...
Nc4 {[%clk 0:01:18.8]} 16. Nxa4 {[%clk 0:02:39.3]} 16... Ncxe5 {[%clk
0:01:13.8]} 17. Nxe5 {[%clk 0:02:40.5]} 17... Nxe5 {[%clk 0:01:15.7]} 18. Nxc5
{[%clk 0:02:38.8]} 18... Bc4 {[%clk 0:00:56.5]} 19. b3 {[%clk 0:02:07.9]} 19...
Bb5 {[%clk 0:00:47]} 20. a4 {[%clk 0:02:08.3]} 20... Be8 {[%clk 0:00:46.8]} 21.
Rb1 {[%clk 0:01:59.8]} 21... g5 {[%clk 0:00:33.3]} 22. Bxe5 {[%clk 0:01:57.7]}
22... Bxe5 {[%clk 0:00:35.2]} 23. Nd3 {[%clk 0:01:58.4]} 23... Bg7 {[%clk
0:00:35.5]} 24. Nb4 {[%clk 0:01:47]} 24... Bc3 {[%clk 0:00:28.9]} 25. Re4 {[%clk
0:01:48.3]} 25... f5 {[%clk 0:00:25.3]} 26. Rc4 {[%clk 0:01:48.9]} 26... Bf6
{[%clk 0:00:20.5]} 27. Nc6 {[%clk 0:01:49.7]} 27... Bxc6 {[%clk 0:00:22]} 28.
dxc6 {[%clk 0:01:50.6]} 28... Qc7 {[%clk 0:00:23.5]} 29. b4 {[%clk 0:01:50.6]}
29... f4 {[%clk 0:00:24.3]} 30. b5 {[%clk 0:01:51.6]} 30... fxg3 {[%clk
0:00:25.6]} 31. hxg3 {[%clk 0:01:53.5]} 31... Qb6 {[%clk 0:00:26.1]} 32. c7
{[%clk 0:01:33.7]} 32... Be5 {[%clk 0:00:26.7]} 33. Qd2 {[%clk 0:01:17.6]} 33...
Bxg3 {[%clk 0:00:27.1]} 34. Qxg5+ {[%clk 0:01:18]} 34... Kh8 {[%clk 0:00:27.1]}
35. Qxg3 {[%clk 0:01:19.6]} 35... Rac8 {[%clk 0:00:25.6]} 36. Rbc1 {[%clk
0:01:16.5]} 36... Rg8 {[%clk 0:00:26.2]} 37. Qf3 {[%clk 0:01:16.1]} 37... Qa5
{[%clk 0:00:21]} 38. Qc3+ {[%clk 0:01:10.8]} 38... Qxc3 {[%clk 0:00:21.3]} 39.
R1xc3 {[%clk 0:01:12.7]} 39... Rxg2+ {[%clk 0:00:19.7]} 40. Kxg2 {[%clk
0:01:13.5]} 40... Rxc7 {[%clk 0:00:21.6]} 41. Rxc7 {[%clk 0:01:13.8]} 1-0

[Event "*** Titled Tuesday Blitz"]
[Site "Chess.com"]
[Date "2019.10.01"]
[Round "7"]
[White "I-Mesquita"]
[Black "Mikhail_Golubev"]
[Result "0-1"]
[WhiteElo "2646"]
[BlackElo "2521"]
[TimeControl "180+2"]
[EndTime "14:38:12 PDT"]
[Termination "Mikhail_Golubev won on time"]

1. d4 {[%clk 0:03:00.2]} 1... Nf6 {[%clk 0:02:59.8]} 2. c4 {[%clk 0:03:00.3]}
2... g6 {[%clk 0:03:00.6]} 3. Nc3 {[%clk 0:03:00.4]} 3... Bg7 {[%clk 0:03:01.9]}
4. e4 {[%clk 0:02:57.9]} 4... d6 {[%clk 0:03:02.1]} 5. h3 {[%clk 0:02:57.6]}
5... O-O {[%clk 0:03:02.7]} 6. Be3 {[%clk 0:02:58.8]} 6... Na6 {[%clk
0:03:02.5]} 7. g4 {[%clk 0:02:43.9]} 7... c6 {[%clk 0:03:02.7]} 8. Nge2 {[%clk
0:02:41.9]} 8... h5 {[%clk 0:02:42.1]} 9. Qd2 {[%clk 0:02:32.7]} 9... e5 {[%clk
0:02:32]} 10. d5 {[%clk 0:02:30.7]} 10... Nc5 {[%clk 0:02:25.9]} 11. Bg2 {[%clk
0:02:30.7]} 11... a5 {[%clk 0:02:19.5]} 12. Ng3 {[%clk 0:02:12.9]} 12... hxg4
{[%clk 0:01:54.1]} 13. O-O-O {[%clk 0:01:52.8]} 13... cxd5 {[%clk 0:01:49.2]}
14. exd5 {[%clk 0:01:40.6]} 14... a4 {[%clk 0:01:45.7]} 15. Bh6 {[%clk
0:01:36.3]} 15... Nd3+ {[%clk 0:01:42.7]} 16. Kb1 {[%clk 0:01:30.8]} 16... Nxf2
{[%clk 0:01:27.7]} 17. Bxg7 {[%clk 0:01:18.9]} 17... Nxd1 {[%clk 0:01:28.2]} 18.
hxg4 {[%clk 0:01:02.1]} 18... Nxc3+ {[%clk 0:01:23.2]} 19. bxc3 {[%clk
0:00:44.4]} 19... Nxg4 {[%clk 0:01:24.1]} 20. Bxf8 {[%clk 0:00:22.3]} 20... Qxf8
{[%clk 0:01:24.6]} 21. Bf3 {[%clk 0:00:19.4]} 21... Qg7 {[%clk 0:01:21]} 22. Ka1
{[%clk 0:00:15.8]} 22... Bd7 {[%clk 0:01:10.8]} 23. Qg5 {[%clk 0:00:16.7]} 23...
Qf6 {[%clk 0:01:05.3]} 24. Ne4 {[%clk 0:00:08.1]} 24... Qxg5 {[%clk 0:00:53.6]}
25. Nxg5 {[%clk 0:00:09]} 25... Nf6 {[%clk 0:00:47.5]} 26. c5 {[%clk 0:00:09.6]}
26... dxc5 {[%clk 0:00:46.8]} 27. Re1 {[%clk 0:00:10.4]} 27... Re8 {[%clk
0:00:43.6]} 28. d6 {[%clk 0:00:10.7]} 28... e4 {[%clk 0:00:37.5]} 29. Be2 {[%clk
0:00:09.8]} 29... Re5 {[%clk 0:00:32.5]} 30. Rg1 {[%clk 0:00:07.1]} 30... Bg4
{[%clk 0:00:26.7]} 0-1

[Event "*** Titled Tuesday Blitz"]
[Site "Chess.com"]
[Date "2019.10.01"]
[Round "7"]
[White "mortngabriel"]
[Black "Misha_Bilous"]
[Result "0-1"]
[WhiteElo "2343"]
[BlackElo "2519"]
[TimeControl "180+2"]
[EndTime "14:38:19 PDT"]
[Termination "Misha_Bilous won on time"]

1. d4 {[%clk 0:02:41.5]} 1... Nf6 {[%clk 0:03:00.9]} 2. Nc3 {[%clk 0:02:42.1]}
2... d5 {[%clk 0:03:01.3]} 3. Bf4 {[%clk 0:02:42.7]} 3... e6 {[%clk 0:02:58.2]}
4. e3 {[%clk 0:02:43.5]} 4... Bd6 {[%clk 0:02:58.8]} 5. Bd3 {[%clk 0:02:44]}
5... Bxf4 {[%clk 0:02:56.3]} 6. exf4 {[%clk 0:02:45.9]} 6... O-O {[%clk
0:02:57.2]} 7. Nf3 {[%clk 0:02:42.1]} 7... c5 {[%clk 0:02:57.1]} 8. dxc5 {[%clk
0:02:44]} 8... Qa5 {[%clk 0:02:53.1]} 9. O-O {[%clk 0:02:43.3]} 9... Qxc5 {[%clk
0:02:51.3]} 10. Ne2 {[%clk 0:02:26.6]} 10... Nc6 {[%clk 0:02:49.7]} 11. c3
{[%clk 0:02:26.8]} 11... a5 {[%clk 0:02:48.1]} 12. a4 {[%clk 0:02:20]} 12... b6
{[%clk 0:02:46.6]} 13. Ned4 {[%clk 0:01:52]} 13... Ba6 {[%clk 0:02:39.1]} 14.
Nxc6 {[%clk 0:01:31.6]} 14... Bxd3 {[%clk 0:02:16.8]} 15. Qxd3 {[%clk 0:01:32]}
15... Qxc6 {[%clk 0:02:18.2]} 16. Ne5 {[%clk 0:01:21.3]} 16... Qc5 {[%clk
0:02:08.7]} 17. f5 {[%clk 0:01:13]} 17... exf5 {[%clk 0:01:52]} 18. Qxf5 {[%clk
0:01:09.9]} 18... d4 {[%clk 0:01:51.5]} 19. cxd4 {[%clk 0:01:02.8]} 19... Qxd4
{[%clk 0:01:53]} 20. b3 {[%clk 0:01:04.3]} 20... Rfe8 {[%clk 0:01:45.5]} 21.
Rfe1 {[%clk 0:00:58.6]} 21... Rad8 {[%clk 0:01:30.7]} 22. Nf3 {[%clk 0:00:21.2]}
22... Qc3 {[%clk 0:01:17.2]} 23. Qb5 {[%clk 0:00:20.2]} 23... Rxe1+ {[%clk
0:00:32.5]} 24. Rxe1 {[%clk 0:00:20.7]} 24... Qc7 {[%clk 0:00:34]} 25. h3 {[%clk
0:00:18.4]} 25... h6 {[%clk 0:00:35.6]} 26. Qe5 {[%clk 0:00:05.8]} 26... Qd7
{[%clk 0:00:27]} 27. Qe2 {[%clk 0:00:04]} 27... Qd6 {[%clk 0:00:21.8]} 0-1

[Event "*** Titled Tuesday Blitz"]
[Site "Chess.com"]
[Date "2019.10.01"]
[Round "7"]
[White "AndrewMcStone"]
[Black "chesstatour"]
[Result "0-1"]
[WhiteElo "2129"]
[BlackElo "2043"]
[TimeControl "180+2"]
[EndTime "14:38:20 PDT"]
[Termination "chesstatour won by resignation"]

1. f4 {[%clk 0:03:01.9]} 1... e5 {[%clk 0:02:58.8]} 2. fxe5 {[%clk 0:03:01.9]}
2... d6 {[%clk 0:02:59.4]} 3. exd6 {[%clk 0:03:03.4]} 3... Bxd6 {[%clk
0:03:00.5]} 4. Nf3 {[%clk 0:03:04.8]} 4... g5 {[%clk 0:03:01.6]} 5. g3 {[%clk
0:03:05.9]} 5... g4 {[%clk 0:03:02.3]} 6. Nh4 {[%clk 0:03:06.9]} 6... Ne7 {[%clk
0:03:03.9]} 7. d4 {[%clk 0:03:08.3]} 7... Ng6 {[%clk 0:03:04.8]} 8. Nxg6 {[%clk
0:03:09.7]} 8... hxg6 {[%clk 0:03:04.1]} 9. Qd3 {[%clk 0:03:10.1]} 9... Qe7
{[%clk 0:02:54.1]} 10. Bg2 {[%clk 0:03:07.1]} 10... Nc6 {[%clk 0:02:41]} 11. c3
{[%clk 0:03:07.2]} 11... Bd7 {[%clk 0:02:40.8]} 12. e4 {[%clk 0:02:57.6]} 12...
O-O-O {[%clk 0:02:34.7]} 13. Be3 {[%clk 0:02:54.4]} 13... f5 {[%clk 0:02:17.7]}
14. Nd2 {[%clk 0:02:31.1]} 14... Rxh2 {[%clk 0:01:50.9]} 15. Rxh2 {[%clk
0:02:09.5]} 15... Bxg3+ {[%clk 0:01:51.3]} 16. Kd1 {[%clk 0:02:10.8]} 16... Bxh2
{[%clk 0:01:50.1]} 17. Kc2 {[%clk 0:02:04.3]} 17... f4 {[%clk 0:01:47.3]} 18.
Bg1 {[%clk 0:02:00.3]} 18... Rh8 {[%clk 0:01:21]} 19. d5 {[%clk 0:01:24.5]}
19... Ne5 {[%clk 0:01:13.1]} 20. Qd4 {[%clk 0:01:25.5]} 20... Bxg1 {[%clk
0:01:02.6]} 21. Rxg1 {[%clk 0:01:25.4]} 21... Kb8 {[%clk 0:00:54.8]} 22. Nc4
{[%clk 0:01:11.1]} 22... Re8 {[%clk 0:00:38.1]} 23. Na5 {[%clk 0:01:02.1]} 23...
b6 {[%clk 0:00:26]} 24. Nb3 {[%clk 0:00:41.1]} 24... g5 {[%clk 0:00:21.1]} 25.
Rh1 {[%clk 0:00:32.4]} 25... f3 {[%clk 0:00:18.4]} 26. Bf1 {[%clk 0:00:32.2]}
26... g3 {[%clk 0:00:18.8]} 27. Rg1 {[%clk 0:00:33]} 27... g2 {[%clk 0:00:17.9]}
28. Bxg2 {[%clk 0:00:14.1]} 28... fxg2 {[%clk 0:00:18.5]} 29. Rxg2 {[%clk
0:00:15.7]} 29... Nf3 {[%clk 0:00:17.8]} 30. Qe3 {[%clk 0:00:14.5]} 30... Qxe4+
{[%clk 0:00:18.2]} 31. Qxe4 {[%clk 0:00:15.3]} 31... Rxe4 {[%clk 0:00:19.3]} 32.
Kd3 {[%clk 0:00:16.9]} 32... Rf4 {[%clk 0:00:19.5]} 33. Nc1 {[%clk 0:00:11.4]}
33... Ne1+ {[%clk 0:00:19.9]} 0-1

[Event "*** Titled Tuesday Blitz"]
[Site "Chess.com"]
[Date "2019.10.01"]
[Round "7"]
[White "2165149677570"]
[Black "cukus"]
[Result "0-1"]
[WhiteElo "2293"]
[BlackElo "2467"]
[TimeControl "180+2"]
[EndTime "14:38:28 PDT"]
[Termination "cukus won by resignation"]

1. e4 {[%clk 0:03:01.9]} 1... e5 {[%clk 0:02:59.2]} 2. Nf3 {[%clk 0:02:56.4]}
2... Nf6 {[%clk 0:02:58.9]} 3. Nxe5 {[%clk 0:02:56.6]} 3... d6 {[%clk
0:02:53.7]} 4. Nf3 {[%clk 0:02:57.4]} 4... Nxe4 {[%clk 0:01:12.5]} 5. d4 {[%clk
0:02:56.8]} 5... d5 {[%clk 0:01:12.9]} 6. Bd3 {[%clk 0:02:58.1]} 6... Bd6 {[%clk
0:01:13.5]} 7. O-O {[%clk 0:02:59.3]} 7... O-O {[%clk 0:00:15.1]} 8. c4 {[%clk
0:02:58.1]} 8... c6 {[%clk 0:00:13.9]} 9. Nc3 {[%clk 0:02:58.7]} 9... Nxc3
{[%clk 0:00:14.8]} 10. bxc3 {[%clk 0:03:00.6]} 10... dxc4 {[%clk 0:00:16.2]} 11.
Bxc4 {[%clk 0:03:01.9]} 11... Bf5 {[%clk 0:00:17.5]} 12. Bd3 {[%clk 0:02:46.1]}
12... Bxd3 {[%clk 0:00:17]} 13. Qxd3 {[%clk 0:02:48]} 13... Nd7 {[%clk
0:00:18.4]} 14. Rb1 {[%clk 0:02:48.9]} 14... Qc7 {[%clk 0:00:17.7]} 15. Re1
{[%clk 0:02:47.7]} 15... Rfe8 {[%clk 0:00:16.1]} 16. Bg5 {[%clk 0:02:48.7]}
16... h6 {[%clk 0:00:13.6]} 17. Bh4 {[%clk 0:02:49.6]} 17... Rxe1+ {[%clk
0:00:12.7]} 18. Rxe1 {[%clk 0:02:50]} 18... Nf8 {[%clk 0:00:13.6]} 19. Bg3
{[%clk 0:02:50.6]} 19... Bxg3 {[%clk 0:00:13.2]} 20. hxg3 {[%clk 0:02:52]} 20...
Ng6 {[%clk 0:00:14.4]} 21. Qf5 {[%clk 0:02:43.2]} 21... Rf8 {[%clk 0:00:12.5]}
22. Re3 {[%clk 0:02:38.1]} 22... Qd6 {[%clk 0:00:12.2]} 23. Ne5 {[%clk
0:02:36.6]} 23... Nxe5 {[%clk 0:00:10.5]} 24. Qxe5 {[%clk 0:02:34.8]} 24... Qxe5
{[%clk 0:00:06.8]} 25. Rxe5 {[%clk 0:02:36.7]} 25... f6 {[%clk 0:00:08.3]} 26.
Re7 {[%clk 0:02:37.5]} 26... Rf7 {[%clk 0:00:09.7]} 27. Re8+ {[%clk 0:02:26.5]}
27... Rf8 {[%clk 0:00:10.6]} 28. Re2 {[%clk 0:02:23.7]} 28... Kf7 {[%clk
0:00:11.1]} 29. f4 {[%clk 0:02:13.4]} 29... b6 {[%clk 0:00:11.2]} 30. Kf2 {[%clk
0:02:12.4]} 30... Re8 {[%clk 0:00:12.7]} 31. Rb2 {[%clk 0:02:12]} 31... Ke6
{[%clk 0:00:12.6]} 32. Ke3 {[%clk 0:02:08.2]} 32... Kd5+ {[%clk 0:00:13.8]} 33.
Kd3 {[%clk 0:02:09.5]} 33... c5 {[%clk 0:00:15.4]} 34. c4+ {[%clk 0:02:08.7]}
34... Kd6 {[%clk 0:00:16.3]} 35. d5 {[%clk 0:02:04.9]} 35... Re1 {[%clk
0:00:15.2]} 36. Re2 {[%clk 0:02:03.1]} 36... Rd1+ {[%clk 0:00:14.8]} 37. Rd2
{[%clk 0:02:00.5]} 37... Rxd2+ {[%clk 0:00:15]} 38. Kxd2 {[%clk 0:02:02.4]}
38... h5 {[%clk 0:00:16.4]} 39. Ke3 {[%clk 0:01:58.5]} 39... Kd7 {[%clk
0:00:17.2]} 40. Ke4 {[%clk 0:01:59.7]} 40... Ke7 {[%clk 0:00:18.2]} 41. Kf5
{[%clk 0:02:01]} 41... b5 {[%clk 0:00:17.3]} 42. cxb5 {[%clk 0:01:53.4]} 42...
Kd6 {[%clk 0:00:17.2]} 43. Ke4 {[%clk 0:01:53.7]} 43... f5+ {[%clk 0:00:18.1]}
44. Kd3 {[%clk 0:01:44.5]} 44... Kxd5 {[%clk 0:00:19.8]} 45. a4 {[%clk
0:01:41.1]} 45... c4+ {[%clk 0:00:20.3]} 46. Kc2 {[%clk 0:01:30]} 46... Kc5
{[%clk 0:00:22.2]} 47. Kc3 {[%clk 0:01:29.5]} 47... g6 {[%clk 0:00:23.4]} 0-1

[Event "*** Titled Tuesday Blitz"]
[Site "Chess.com"]
[Date "2019.10.01"]
[Round "7"]
[White "babero_gordo"]
[Black "politeplayer"]
[Result "1/2-1/2"]
[WhiteElo "2107"]
[BlackElo "2181"]
[TimeControl "180+2"]
[EndTime "14:38:28 PDT"]
[Termination "Game drawn by repetition"]

1. e4 {[%clk 0:03:01.9]} 1... c5 {[%clk 0:02:59.9]} 2. Nf3 {[%clk 0:03:02.6]}
2... d6 {[%clk 0:03:00.9]} 3. d4 {[%clk 0:03:01.9]} 3... cxd4 {[%clk 0:03:02.3]}
4. Nxd4 {[%clk 0:03:03.8]} 4... Nf6 {[%clk 0:03:02.5]} 5. f3 {[%clk 0:03:04.9]}
5... g6 {[%clk 0:03:04.1]} 6. c4 {[%clk 0:02:58.8]} 6... Bg7 {[%clk 0:03:05.4]}
7. Nc3 {[%clk 0:02:54.4]} 7... Nc6 {[%clk 0:03:06.6]} 8. Be3 {[%clk 0:02:48]}
8... Bd7 {[%clk 0:03:08]} 9. Be2 {[%clk 0:02:46.4]} 9... Nxd4 {[%clk 0:03:07.3]}
10. Bxd4 {[%clk 0:02:47.2]} 10... Bc6 {[%clk 0:03:08.6]} 11. O-O {[%clk
0:02:45.2]} 11... a5 {[%clk 0:03:10]} 12. b3 {[%clk 0:02:42.1]} 12... O-O {[%clk
0:03:09.3]} 13. Qd2 {[%clk 0:02:42.8]} 13... Nd7 {[%clk 0:03:07.5]} 14. Bf2
{[%clk 0:02:39.3]} 14... Nc5 {[%clk 0:03:05.8]} 15. Rac1 {[%clk 0:02:37.9]}
15... Qb6 {[%clk 0:03:05.6]} 16. Rfd1 {[%clk 0:02:18]} 16... a4 {[%clk
0:03:05.6]} 17. Nb5 {[%clk 0:01:58.7]} 17... axb3 {[%clk 0:03:02]} 18. axb3
{[%clk 0:01:53.5]} 18... Bxb5 {[%clk 0:02:42.6]} 19. cxb5 {[%clk 0:01:52.8]}
19... Qd8 {[%clk 0:02:02]} 20. Bc4 {[%clk 0:01:36.1]} 20... b6 {[%clk 0:01:42]}
21. Qf4 {[%clk 0:01:24.4]} 21... Ra2 {[%clk 0:01:30.6]} 22. b4 {[%clk
0:01:19.1]} 22... Rxf2 {[%clk 0:01:29.4]} 23. Kxf2 {[%clk 0:01:14.5]} 23... Nd7
{[%clk 0:01:30.3]} 24. Qe3 {[%clk 0:01:02.6]} 24... Ne5 {[%clk 0:01:27.6]} 25.
Be2 {[%clk 0:01:03.2]} 25... f5 {[%clk 0:01:26.6]} 26. Kg1 {[%clk 0:01:00.2]}
26... fxe4 {[%clk 0:01:20.8]} 27. fxe4 {[%clk 0:00:58.2]} 27... e6 {[%clk
0:01:21.8]} 28. Qb3 {[%clk 0:00:56.3]} 28... Qe7 {[%clk 0:01:11.2]} 29. Rc2
{[%clk 0:00:48.1]} 29... Bh6 {[%clk 0:01:10.2]} 30. Rf1 {[%clk 0:00:38.9]} 30...
Rxf1+ {[%clk 0:01:02.3]} 31. Bxf1 {[%clk 0:00:37]} 31... Ng4 {[%clk 0:01:01.4]}
32. Rc8+ {[%clk 0:00:33.6]} 32... Kf7 {[%clk 0:00:58.6]} 33. Qf3+ {[%clk
0:00:33.1]} 33... Nf6 {[%clk 0:00:58.8]} 34. Qc3 {[%clk 0:00:25.6]} 34... Nxe4
{[%clk 0:00:51.4]} 35. Qh8 {[%clk 0:00:22.6]} 35... Be3+ {[%clk 0:00:48.7]} 36.
Kh1 {[%clk 0:00:23.2]} 36... Nf2+ {[%clk 0:00:47.6]} 37. Kg1 {[%clk 0:00:24.4]}
37... Ng4+ {[%clk 0:00:40.1]} 38. Kh1 {[%clk 0:00:25.3]} 38... Nf2+ {[%clk
0:00:35.2]} 39. Kg1 {[%clk 0:00:26.5]} 39... Ng4+ {[%clk 0:00:28.3]} 40. Kh1
{[%clk 0:00:27.8]} 40... Nf2+ {[%clk 0:00:29.8]} 1/2-1/2

[Event "*** Titled Tuesday Blitz"]
[Site "Chess.com"]
[Date "2019.10.01"]
[Round "7"]
[White "akretchetov"]
[Black "arjwezhrtdrz"]
[Result "1/2-1/2"]
[WhiteElo "2363"]
[BlackElo "2098"]
[TimeControl "180+2"]
[EndTime "14:38:55 PDT"]
[Termination "Game drawn by repetition"]

1. d4 {[%clk 0:03:01.9]} 1... d6 {[%clk 0:02:57.9]} 2. Bf4 {[%clk 0:02:59.3]}
2... c6 {[%clk 0:02:58.2]} 3. Nc3 {[%clk 0:02:59.6]} 3... Nf6 {[%clk 0:02:59]}
4. Qd2 {[%clk 0:03:00.3]} 4... Nbd7 {[%clk 0:02:58.2]} 5. Nf3 {[%clk 0:03:01.2]}
5... Qc7 {[%clk 0:02:53.2]} 6. h3 {[%clk 0:03:00.2]} 6... e5 {[%clk 0:02:53.8]}
7. Bh2 {[%clk 0:03:01]} 7... Be7 {[%clk 0:02:53]} 8. e4 {[%clk 0:03:00.3]} 8...
O-O {[%clk 0:02:52.6]} 9. a4 {[%clk 0:03:01.2]} 9... a5 {[%clk 0:02:52.8]} 10.
Bc4 {[%clk 0:03:01]} 10... exd4 {[%clk 0:02:42.2]} 11. Qxd4 {[%clk 0:03:01.6]}
11... Ne8 {[%clk 0:00:56.2]} 12. O-O {[%clk 0:02:54.5]} 12... Bf6 {[%clk
0:00:56.8]} 13. Qe3 {[%clk 0:02:46.4]} 13... Ne5 {[%clk 0:00:57.8]} 14. Be2
{[%clk 0:02:43.5]} 14... Nxf3+ {[%clk 0:00:42.7]} 15. Bxf3 {[%clk 0:02:44.2]}
15... Be5 {[%clk 0:00:44.6]} 16. Bxe5 {[%clk 0:02:37.2]} 16... dxe5 {[%clk
0:00:45.4]} 17. Rfd1 {[%clk 0:02:37.5]} 17... Be6 {[%clk 0:00:43.1]} 18. Qc5
{[%clk 0:02:37.8]} 18... Nf6 {[%clk 0:00:39.4]} 19. Nb5 {[%clk 0:02:34.1]} 19...
Qb8 {[%clk 0:00:34.5]} 20. Nd6 {[%clk 0:02:30.1]} 20... Nd7 {[%clk 0:00:35.8]}
21. Qc3 {[%clk 0:02:26.1]} 21... Qa7 {[%clk 0:00:35.7]} 22. Bg4 {[%clk
0:02:14.4]} 22... Bxg4 {[%clk 0:00:27.3]} 23. hxg4 {[%clk 0:02:15.2]} 23... Rab8
{[%clk 0:00:27.4]} 24. b3 {[%clk 0:01:56.7]} 24... Qc5 {[%clk 0:00:26.8]} 25.
Qxc5 {[%clk 0:01:56.3]} 25... Nxc5 {[%clk 0:00:27.1]} 26. Rd2 {[%clk 0:01:54.7]}
26... g6 {[%clk 0:00:22.8]} 27. Rad1 {[%clk 0:01:54.4]} 27... Rfd8 {[%clk
0:00:17.1]} 28. g5 {[%clk 0:01:47.2]} 28... Kf8 {[%clk 0:00:13.8]} 29. f3 {[%clk
0:01:44.9]} 29... Ke7 {[%clk 0:00:11.9]} 30. Nc4 {[%clk 0:01:45.7]} 30... Rxd2
{[%clk 0:00:07.1]} 31. Rxd2 {[%clk 0:01:46.9]} 31... Ne6 {[%clk 0:00:03.4]} 32.
Nxa5 {[%clk 0:01:32.9]} 32... Nxg5 {[%clk 0:00:04.5]} 33. Nc4 {[%clk 0:01:32.7]}
33... f6 {[%clk 0:00:04.8]} 34. a5 {[%clk 0:01:33.5]} 34... Ne6 {[%clk
0:00:05.1]} 35. c3 {[%clk 0:01:34.2]} 35... Nf4 {[%clk 0:00:06.1]} 36. Kf2
{[%clk 0:01:33.6]} 36... Ne6 {[%clk 0:00:07.4]} 37. b4 {[%clk 0:01:34.1]} 37...
Nf4 {[%clk 0:00:08.3]} 38. g3 {[%clk 0:01:34.8]} 38... Ne6 {[%clk 0:00:09.6]}
39. Ke3 {[%clk 0:01:36.1]} 39... Nc7 {[%clk 0:00:10.9]} 40. Nb6 {[%clk 0:01:30]}
40... Rd8 {[%clk 0:00:10.4]} 41. Rxd8 {[%clk 0:01:28.6]} 41... Kxd8 {[%clk
0:00:12.2]} 42. c4 {[%clk 0:01:30.1]} 42... Ke7 {[%clk 0:00:13.2]} 43. Na4
{[%clk 0:01:30.8]} 43... Ne6 {[%clk 0:00:13.5]} 44. b5 {[%clk 0:01:30.7]} 44...
Kd7 {[%clk 0:00:12.8]} 45. b6 {[%clk 0:01:23.3]} 45... h5 {[%clk 0:00:11.5]} 46.
Kf2 {[%clk 0:01:14.1]} 46... g5 {[%clk 0:00:12.5]} 47. Kg2 {[%clk 0:01:14.4]}
47... Kc8 {[%clk 0:00:13.5]} 48. Kh3 {[%clk 0:01:13.3]} 48... Nd4 {[%clk
0:00:14.5]} 49. Kg2 {[%clk 0:01:13.4]} 49... Ne6 {[%clk 0:00:14.1]} 50. Kf2
{[%clk 0:01:12.3]} 50... Kb8 {[%clk 0:00:13.8]} 51. Kg2 {[%clk 0:01:11.5]} 51...
Kc8 {[%clk 0:00:14.9]} 1/2-1/2